{"text_format":"1","workbook":"xlsx","n_sheets":7,"sheets":["Zadání","Výpočet u navrhovatele","2. z manželů","Společné oddlužení manželů","Přímé zadání splátky","Výpočet průměrného příjmu","Cestovné"],"not_rendered":{"charts":0,"images":0,"macros":0,"external_links":0,"defined_names":4,"comments":7,"pivot_tables":0},"unopened":[],"bounds":{"document_bytes":16777216,"sheet_cells":100000,"rows_first":2000,"rows_last":500,"rows_between":2000,"halvings":0,"cell_chars":16384,"cell_head_chars":4096},"cells_cut":0,"cells_raw":0,"read":"whole","date_system":"1900"}

{"sheet":"Zadání","index":0,"n_rows":16,"n_cols":13,"rows_kept":16,"cut":false,"hidden":false,"merged":[[10,3,10,4],[2,8,3,8],[14,1,14,4],[15,1,15,8],[0,0,0,9],[2,2,2,4],[2,6,3,6],[2,9,3,9],[2,7,3,7]]}
["Zadávací list"]
["Oddlužení 2016"]
[null,null,"Příjmy z pracovního poměru a důchody",null,null,null,"Příspěvek ke splátkám","Běžné výživné\n placené IS","DLUŽNÉ výživné\n placené IS","počet vyživ. osob",null,{"$f":"INT(L5/3*2*100+1)/100","v":6178.67},"životní minimum=2/3 u částky  L5"]
[null,null,"čistá mzda","důchod nebo jiný příjem","příjem celkem",null,null,null,null,null,null,{"$f":"INT(L3/4*100+1)/100","v":1544.67},"Na vyživovanou osobu = 1/4 z L1"]
["Jméno navrhovatele",null,null,null,{"$f":"C5+D5","v":0},null,null,null,null,null,null,{"$f":"3410+5858","v":9268},"Součet životního minima 3.410,--Kč a nákladů na bydlení 5.858,--Kč (nařízení vlády 395/2015)"]
["Jméno manžela/ky/",null,null,null,{"$f":"C6+D6","v":0},null,null,null,null,null,null,{"$f":"(INT(L5/3))","v":3089},"jedna třetina  z L5 na poměření srážek"]
["společné označení",null,null,null,null,null,null,null,60]
[]
[null,null,null,null,"odměna vč. DPH",null,"odměna","pauš. náklady","DPH"]
["Výše závazků navrh.",null,null,"Odměna IS vč. DPH",{"$f":"(G10+H10)*(I10+1)","v":1089},null,750,150,0.21]
["Výše závazků manžela(ky)",null,null,"zvýš. odměny IS za manžele či jiného důvodu",null,null,{"$f":"IF(J11=\"x\",50%,(IF(J11=\"X\",50,0)))","v":0},{"$f":"G11","v":0},"manželé"]
["Výše spol. závazků",{"$f":"SUM(B10:B11)","v":0},"BEZ DUPLICIT!!!!!!!","Odměna IS za manžele",{"$f":"(G12+H12)*(I12+1)","v":1089},null,{"$f":"G10*(100%+G11)","v":750},150,0.21]
[]
[]
[null,"NÁVOD:\nVyplňte údaje v zelených polích, pokud pro ně existují  podklady, či mají pro výpočet být vyplněny.\nDo společných závazků vkládat společnou částku bez duplicit."]
[null,"Nově vloženo zaškrtávací pole pro manžele- automatické zvýšení o 50%.\nVe výpočtech je pro tento případ zadáváno u každého z manželů 50% ze zvýšené částky.\nDo tabulky \"Přímé zadání splátky\" je přidán pomocník pro zjednodušení výpočtu splátky - automaticky je nastaven na 30%.\nPokud potřebujete jinou procentní sazbu změnte ji přepsáním. Současně se Vám pod minimální splátkou objeví, jak vysoký by měl být případný příspěvek."]

{"sheet":"Výpočet u navrhovatele","index":1,"n_rows":34,"n_cols":6,"rows_kept":34,"cut":false,"hidden":false,"merged":[[0,0,0,1],[30,0,30,1],[5,4,7,4]]}
["Výpočet oddlužení"]
[]
["Dlužník:  "]
[{"$f":"Zadání!B5","v":0}]
[null,null,null,null,"Návod:"]
["Přihlášené pohledávky celkem",{"$f":"Zadání!B10","v":0},null,null,"Proveď kontrolu zadaných (oranžových) polí."]
[]
["Čistý příjem",{"$f":"Zadání!E5","v":0}]
[]
["domácnost + dlužník",{"$f":"Zadání!L3","v":6178.67}]
["děti či jiné osoby             počet",{"$f":"Zadání!J5","v":0}]
["děti či jiné osoby           částka",{"$f":"Zadání!L4","v":1544.67},null,null,null,{"$f":"Zadání!L5","v":9268}]
["děti či jiné osoby           celkem",{"$f":"B12*B11","v":0}]
["Celkem nezabavitelná část",{"$f":"IF(INT(B13+B10)-(B13+B10)=0,(B13+B10),INT(B13+B10)+1)","v":6179}]
[]
["Zbývající část čisté mzdy",{"$f":"B8-B14","v":-6179}]
["Neomezeně srazitelná část",{"$f":"IF(B$16<=F$12,0,B$16-F$12)","v":0}]
["Zabavitelné třetiny",{"$f":"IF(B$16<=F$12,INT(B16/3),Zadání!L6)","v":-2060}]
["Součet srazitelných částek",{"$f":"B17+B18*2","v":-4120}]
["Mzda",{"$f":"IF(B19<0,B8,B8-B19)","v":0}]
[]
["Zabavitelná část",{"$f":"IF(B19<0,0,B19)","v":0}]
["Příspěvek na spl. od 3 osoby",{"$f":"Zadání!G5","v":0}]
["Výživné hrazené IS",{"$f":"Zadání!H5+(Zadání!I5/Zadání!I7)","v":0}]
["Odměna a náklady správce",{"$f":"IF(Zadání!J11=\"x\",Zadání!E12/2,(IF(Zadání!J11=\"X\",Zadání!E12/2,Zadání!E12)))","v":1089}]
["Měsíční částka připadající na splátky",{"$f":"IF((B22-B25-B24+B23)<0.0001,0,B22-B25-B24+B23)","v":0}]
[]
["Dlužník uhradí za 5 let",{"$f":"B26*60","v":0}]
[]
[]
[{"$f":"IF(B28>(B6/100*30),\"Oddlužení je možné.\",\"Nelze oddlužit.\")","v":"Nelze oddlužit."}]
[]
["Předpokládaná výše uspokojení v %",{"$f":"IF(B28>0,B28/(B6),0)","v":0}]
["Doba splácení v měsících, pokud uspokojení přesahuje 100%",{"$f":"IF(B33>=100%,INT(B6/B26)+1,\"Více než 60 měsíců\")","v":"Více než 60 měsíců"}]

{"sheet":"2. z manželů","index":2,"n_rows":34,"n_cols":6,"rows_kept":34,"cut":false,"hidden":false,"merged":[[0,0,0,1],[30,0,30,1],[5,4,7,4]]}
["Výpočet oddlužení"]
[]
["Dlužník:  "]
[{"$f":"Zadání!B6","v":0}]
[null,null,null,null,"Návod:"]
["Přihlášené pohledávky celkem",{"$f":"Zadání!B11","v":0},null,null,{"$f":"'Výpočet u navrhovatele'!E6:E8","v":"Proveď kontrolu zadaných (oranžových) polí."}]
[]
["Čistý příjem",{"$f":"Zadání!E6","v":0}]
[]
["domácnost + dlužník",{"$f":"Zadání!L3","v":6178.67}]
["děti či jiné osoby             počet",{"$f":"Zadání!J6","v":0}]
["děti či jiné osoby           částka",{"$f":"Zadání!L4","v":1544.67},null,null,null,{"$f":"Zadání!L5","v":9268}]
["děti či jiné osoby           celkem",{"$f":"B12*B11","v":0}]
["Celkem nezabavitelná část",{"$f":"IF(INT(B13+B10)-(B13+B10)=0,(B13+B10),INT(B13+B10)+1)","v":6179}]
[]
["Zbývající část čisté mzdy",{"$f":"B8-B14","v":-6179}]
["Neomezeně srazitelná část",{"$f":"IF(B$16<=F$12,0,B$16-F$12)","v":0}]
["Zabavitelné třetiny",{"$f":"IF(B$16<=F$12,INT(B16/3),Zadání!L6)","v":-2060}]
["Součet srazitelných částek",{"$f":"B17+B18*2","v":-4120}]
["Mzda",{"$f":"IF(B19<0,B8,B8-B19)","v":0}]
[]
["Zabavitelná část",{"$f":"IF(B19<0,0,B19)","v":0}]
["Příspěvek na spl. od 3 osoby",{"$f":"Zadání!G6","v":0}]
["Výživné hrazené IS",{"$f":"Zadání!H6","v":0}]
["Odměna a náklady správce",{"$f":"IF(Zadání!J11=\"x\",Zadání!E12/2,(IF(Zadání!J11=\"X\",Zadání!E12/2,0)))","v":0}]
["Měsíční částka připadající na splátky",{"$f":"IF((B22-B25-B24+B23)<0.0001,0,B22-B25-B24+B23)","v":0}]
[]
["Dlužník uhradí za 5 let",{"$f":"B26*60","v":0}]
[]
[]
[{"$f":"IF(B28>(B6/100*30),\"Oddlužení je možné.\",\"Nelze oddlužit.\")","v":"Nelze oddlužit."}]
[]
["Předpokládaná výše uspokojení v %",{"$f":"IF(B28>0,B28/(B6),0)","v":0}]
["Doba splácení v měsících, pokud uspokojení přesahuje 100%",{"$f":"IF(B33>=100%,INT(B6/B26)+1,\"Více než 60 měsíců\")","v":"Více než 60 měsíců"}]

{"sheet":"Společné oddlužení manželů","index":3,"n_rows":24,"n_cols":5,"rows_kept":24,"cut":false,"hidden":false,"merged":[[0,0,0,1],[5,4,13,4],[20,0,20,1]]}
["Výpočet oddlužení"]
[]
["Dlužník:  "]
[{"$f":"Zadání!B7","v":0}]
[null,null,null,null,"Návod:"]
["Přihlášené pohledávky celkem",{"$f":"Zadání!B12","v":0},null,null,"Tabulka automaticky načítá kladné hodnoty z předchozích tabulek. Měnit lze pouze odměnu IS, pokud by mu náležela v jiné výši, než je uvedeno na listu zadání. "]
[]
["Čistý příjem obou manželů",{"$f":"IF('Výpočet u navrhovatele'!B8<0,0,'Výpočet u navrhovatele'!B8)+IF('2. z manželů'!B8<0,0,'2. z manželů'!B8)","v":0}]
[]
["Mzda (součet zbytku mezd)",{"$f":"IF('Výpočet u navrhovatele'!B20=0,'Výpočet u navrhovatele'!B8,'Výpočet u navrhovatele'!B20)+IF('2. z manželů'!B20=0,'2. z manželů'!B8,'2. z manželů'!B20)","v":0}]
[]
["Zabavitelná část u obou manželů",{"$f":"'Výpočet u navrhovatele'!B22+'2. z manželů'!B22","v":0}]
["Příspěvek na splátky od 3 osoby ",{"$f":"'Výpočet u navrhovatele'!B23+'2. z manželů'!B23","v":0}]
["Výživné hrazené IS",{"$f":"'Výpočet u navrhovatele'!B24+'2. z manželů'!B24","v":0}]
["Odměna a náklady správce",{"$f":"'Výpočet u navrhovatele'!B25+'2. z manželů'!B25","v":1089}]
["Měsíční částka připadající na splátky",{"$f":"IF((B12+B13-B15-B14)<0.0001,0,B12+B13-B15-B14)","v":0}]
[]
["Dlužník uhradí za 5 let",{"$f":"B16*60","v":0}]
[]
[]
[{"$f":"IF(B18>(B6/100*30),\"Oddlužení je možné.\",\"Nelze oddlužit.\")","v":"Nelze oddlužit."}]
[]
["Předpokládaná výše uspokojení v %",{"$f":"IF(B18>0,B18/(B6),0)","v":0}]
["Doba splácení v měsících, pokud uspokojení přesahuje 100%",{"$f":"IF(B23>=100%,INT(B6/B16)+1,\"Více než 60 měsíců\")","v":"Více než 60 měsíců"}]

{"sheet":"Přímé zadání splátky","index":4,"n_rows":21,"n_cols":6,"rows_kept":21,"cut":false,"hidden":false,"merged":[[0,0,0,1],[17,0,17,1],[5,4,12,4]]}
["Výpočet oddlužení"]
[]
["Dlužník:  "]
[{"$f":"IF(Zadání!B7=0,Zadání!B5,Zadání!B7)","v":0}]
[null,null,null,null,"Návod:"]
["Přihlášené pohledávky celkem",{"$f":"'Společné oddlužení manželů'!B6","v":0},null,null,"Tabulka slouží k výpočtu snížených splátek, nebo výpočtu minimální splátky, aby byla splněna zákonná hranice 30%.\nVyplň do řádku plánovaná splátka čásku, jíž by měl dlužník platit"]
[]
["Část příjmu, jež dlužníkům zůstane",{"$f":"'Společné oddlužení manželů'!B8-B10","v":-10000}]
[]
["Zabavitelná část/Plánovaná splátka",10000]
["Výživné hrazené IS",{"$f":"'Společné oddlužení manželů'!B14","v":0}]
["Odměna a náklady správce",{"$f":"IF(Zadání!E12>Zadání!E10,Zadání!E12,Zadání!E10)","v":1089}]
["Měsíční částka připadající na splátky",{"$f":"B10-B12-B11","v":8911}]
[]
["Dlužník uhradí za 5 let",{"$f":"B13*60","v":534660},null,null,"Pomocník:"]
[]
[null,null,null,null,"Kolik procent má dlužník splnit?",0.3]
[{"$f":"IF(B15>(B6/100*30),\"Oddlužení je možné.\",\"Nelze oddlužit.\")","v":"Oddlužení je možné."},null,null,null,"Výše splátky",{"$f":"B6*F17/60+B12+B11+0.001","v":1089.001}]
[null,null,null,null,"Manželům je možno srazit",{"$f":"'Výpočet u navrhovatele'!B22+'2. z manželů'!B22","v":0}]
["Předpokládaná výše uspokojení v %",{"$f":"IF(B15>0,B15/(B6),0)","v":{"$error":"#DIV/0!"}},null,null,"Bude potřeba příspěvek? Kolik?",{"$f":"IF(('Výpočet u navrhovatele'!B22+'2. z manželů'!B22-'Přímé zadání splátky'!F18)>0,0,'Přímé zadání splátky'!F18-'Výpočet u navrhovatele'!B22-'2. z manželů'!B22)","v":1089.001}]
["Doba splácení v měsících, pokud uspokojení přesahuje 100%",{"$f":"IF(B20>=100%,INT(B6/B13)+1,\"Více než 60 měsíců\")","v":{"$error":"#DIV/0!"}}]

{"sheet":"Výpočet průměrného příjmu","index":5,"n_rows":17,"n_cols":5,"rows_kept":17,"cut":false,"hidden":false,"merged":[]}
["Výpočet průměrného příjmu dlužníka za posledních 6 měsíců"]
[]
[null,null,null,"počet měsíců",6]
[]
[]
[]
[]
[]
[null,{"$f":"SUM(B3:B8)","v":0},"celkem"]
[]
[]
[null,{"$f":"B9/E3","v":0},"Průměrný příjem"]
[]
[null,null,"Mimořádné odměny"]
[]
[]
[null,{"$f":"(B9-B14)/E3","v":0},"průměrný příjem bez odměn"]

{"sheet":"Cestovné","index":6,"n_rows":24,"n_cols":15,"rows_kept":24,"cut":false,"hidden":false,"merged":[[5,3,5,5],[1,10,1,11],[1,13,1,14],[2,0,2,2],[4,3,4,5],[1,0,1,2],[1,3,2,3],[1,4,2,4],[1,5,2,5]]}
[]
["Vyúčtování nákladů IS za období od zjištění úpadku do přezkumu ",null,null,null,null,null,null,null,null,null,"Cestovné - MAZDA CX 9\nRZ 5P6 6346",null,null,{"$f":"K2","v":"Cestovné - MAZDA CX 9\nRZ 5P6 6346"}]
[null,null,null,null,null,null,null,null,null,null,"1. jízda km",48,null,"1. jízda km",156]
[null,null,null,null,null,null,null,null,null,null,"počet jízd",1,null,"počet jízd",1]
["Cestovné",null,{"$f":"L13","v":331},null,null,null,null,null,null,null,"cena benz.",29.7,null,"cena benz.",29.7]
["cestovné k soudu a zpět",null,{"$f":"O13","v":1076}]
["Součet",null,{"$f":"SUM(C5:C6)","v":1407},null,null,null,null,null,null,null,"základ",3.8,null,"základ",3.8]
["DPH 21%",null,{"$f":"C7*Zadání!I12","v":295.46999999999997},null,null,null,null,null,null,null,"základ celkem",{"$f":"L7*L3*L4","v":182.39999999999998},null,"základ celkem",{"$f":"O7*O3*O4","v":592.79999999999995}]
["Náklady celkem",null,{"$f":"C7+C8","v":1702.47},null,null,null,null,null,null,null,"® na 100 km",{"$f":"(13.3+8.9+9.2)/3","v":10.466666666666667},null,"® na 100 km",{"$f":"(13.3+8.9+9.2)/3","v":10.466666666666667}]
["Po zaokrouhlení",null,{"$f":"INT(C9)","v":1702},null,null,null,null,null,null,null,"benzín na km",{"$f":"INT(L9*L5)/100","v":3.1},null,"benzín na km",{"$f":"INT(O9*O5)/100","v":3.1}]
[null,null,null,null,null,null,null,null,null,null,"za benzín celkem",{"$f":"L10*L3*L4","v":148.80000000000001},null,"za benzín celkem",{"$f":"O10*O3*O4","v":483.6}]
[null,null,null,null,null,null,null,null,null,null,"jedna cesta",{"$f":"INT((L7+L10)*L3)","v":331},null,"jedna cesta",{"$f":"INT((O7+O10)*O3)","v":1076}]
[null,null,null,null,null,null,null,null,null,null,"celkem cesty",{"$f":"L12*L4","v":331},null,"celkem cesty",{"$f":"O12*O4","v":1076}]
[]
[null,null,null,null,null,null,null,null,null,null,"kontrolní součet",{"$f":"L8+L11-L13","v":0.19999999999998863}]
[]
[]
[]
[null,null,null,null,null,null,null,null,null,null,"Výše sazby základní náhrady za používání osobních motorových vozidel se od 1. ledna 2016 vyhláškou č. 385/2015 Sb , a činí 3,80 Kč. "]
[]
[null,null,null,null,null,null,null,null,null,null,"Průměrné ceny pohonných hmot jsou následující:"]
[null,null,null,null,null,null,null,null,null,null,"a) 29,70 Kč u benzinu automobilového 95 oktanů,"]
[null,null,null,null,null,null,null,null,null,null,"b) 33,00 Kč u benzinu automobilového 98 oktanů,"]
[null,null,null,null,null,null,null,null,null,null,"c) 29,50 Kč u motorové nafty."]